[Event "1st Henriquez Urena Memorial 2022"]
[Site "Santo Domingo"]
[Date "2022.09.16"]
[Round "1.8"]
[White "Camacho Campusano, David Daniel"]
[Black "Mesa Cruz, Juan Carlos"]
[Result "0-1"]
[ECO "B52"]
[WhiteElo "2230"]
[BlackElo "2119"]
[Annotator "TA"]
[PlyCount "90"]
[EventDate "2022.09.16"]
[EventType "swiss"]
[EventCountry "DOM"]
[SourceTitle "playchess.com"]
[Source "ChessBase"]
[SourceQuality "1"]
[TimeControl "5400+30"]

{[%evp 26,90,-5,-12,-9,-18,-10,-32,-22,-44,-39,-45,0,-39,-42,-81,-78,-102,-108,-121,-106,-114,-109,-139,-106,-156,-145,-145,-129,-132,-153,-140,-107,-81,0,-162,0,-147,-133,-133,-133,-133,-131,-112,-114,-119,-45,-60,-60,-177,-42,-334,-56,-236,-242,-789,-777,-1142,-1012,-903,-896,-887,-864,-856,-807,-1580,-1537]} 1. e4 {[%emt 0:00:30]} c5 {[%emt 0:00:30]} 2. Nf3 {[%emt 0:00:30]} d6 {[%emt 0:00:30]} 3. Bb5+ {[%emt 0:00:30]} Bd7 {[%emt 0:00:30]} 4. Bxd7+ {[%emt 0:00:30]} Qxd7 {[%emt 0:00:30]} 5. O-O {[%emt 0:00:30]} Nf6 {[%emt 0:00:30]} 6. Re1 {[%emt 0:00:30]} e6 {[%emt 0:00:30]} 7. c3 {[%emt 0:00:30]} Be7 {[%emt 0:00:30]} 8. d4 {[%emt 0:00:30]} cxd4 {[%emt 0:00:30]} 9. cxd4 {[%emt 0:00:30]} d5 {[%emt 0:00:30]} 10. e5 {[%emt 0:00:30]} Ne4 {[%emt 0:00:30]} 11. Nbd2 {[%emt 0:00:30]} Nxd2 {[%emt 0:00:30]} 12. Bxd2 {[%emt 0:00:30]} Nc6 {[%emt 0:00:30]} 13. Rc1 {[%emt 0:00:30]} O-O {[%emt 0:00:30]} 14. Rc3 {[%emt 0:00:30]} Rfc8 {[%emt 0:00:30] B52: Sicilian: Moscow Variation with 3...Bd7.} 15. a3 {[%emt 0:00:30]} b5 {[%emt 0:00:30]} 16. h4 {[%emt 0:00:30]} b4 {[%emt 0:23:12] Black is slightly better.} 17. Rd3 {[%emt 0:10:31]} bxa3 {[%emt 0:04:39]} 18. bxa3 {[%emt 0:00:10]} Bf8 {[%emt 0:01:21]} 19. Ng5 {[%emt 0:02:36]} (19. h5 $5 {[%cal Rh5h6]}) 19... h6 {[%emt 0:03:38]} 20. Nh3 {[%emt 0:01:06]} Ne7 {[%emt 0:02:05][%cal Bc6e7,Be7f5,Bf5g3][%mdl 32] [#]} 21. Nf4 $146 {[%emt 0:16:28]} ({Predecessor:} 21. g4 Rc4 22. Bb4 Rac8 23. Nf4 Ng6 24. Nxg6 Bxb4 25. axb4 fxg6 26. b5 h5 27. Rf3 {½-½ (39) Colovic,A (2404)-Arizmendi Martinez,J (2509) Campillos 2005}) 21... Rc4 {[%emt 0:04:06]} 22. Nh5 {[%emt 0:18:30][%cal Od2h6]} Qa4 {[%emt 0:07:49]} 23. Qg4 {[%emt 0:06:34]} Nf5 {[%emt 0:05:29]} 24. Be3 {[%emt 0:06:40]} Rb8 {[%emt 0:09:21]} (24... Bxa3 $2 25. Nxg7 $1 {[%mdl 512]} Kh8 26. Nxf5 exf5 27. Qh5 $18) 25. Ng3 {[%emt 0:08:31] [#]} (25. Nf6+ $142 Kh8 26. Nxd5) 25... Nxg3 $1 $17 {[%emt 0:05:41]} 26. Qxg3 {[%emt 0:00:13]} Rb3 {[%emt 0:00:31]} 27. Rxb3 {[%emt 0:05:59]} Qxb3 {[%emt 0:00:46]} 28. Qg4 {[%emt 0:00:28]} Kh7 {[%emt 0:05:33] Threatens to win with ...a5.} 29. Qf3 {[%emt 0:02:56]} Kg8 {[%emt 0:01:54]} (29... Rc7 $17 30. g4 Bxa3) 30. Qg4 $19 {[%emt 0:00:13]} Kh7 $2 {[%emt 0:01:33]} ({Worse is} 30... Qxa3 31. Rb1 $17) (30... a5 $19 {...a4 is the strong threat.} 31. Bxh6 a4) 31. Qf4 {[%emt 0:01:19]} (31. Qf3 $11 Rc7 32. g4) 31... Rc7 {[%emt 0:01:56]} 32. Rc1 {[%emt 0:07:57]} Rxc1+ {[%emt 0:01:21]} 33. Bxc1 $17 {[%emt 0:00:02][%mdl 4096] Endgame KQB-KQB} Kg8 {[%emt 0:00:37]} 34. Qe3 {[%emt 0:00:58]} Qd1+ {[%emt 0:02:20]} 35. Kh2 {[%emt 0:00:09]} a5 {[%emt 0:00:14] Black is more active.} (35... Qh5 $17 36. g3 g5) 36. Qc3 $15 {[%emt 0:02:51]} a4 {[%emt 0:02:18]} 37. Bb2 {[%emt 0:00:35] [#]} (37. g3 $1 $15) 37... Qg4 {[%emt 0:02:39]} (37... Qh5 $1 $19 38. Qc2 Qxh4+ 39. Kg1 Qe4) 38. Qc6 $2 {[%emt 0:01:58][%mdl 8192]} ({White has to play} 38. g3 $15) 38... Qxh4+ {[%emt 0:00:34]} 39. Kg1 {[%emt 0:00:09]} Qe4 {[%emt 0:00:13] Strongly threatening ...Qe1+.} 40. Bc3 {[%emt 0:00:59] Against Qe1+} (40. Qc3) 40... Qc2 $19 {[%emt 0:00:41] Black is clearly winning.} 41. f4 {[%emt 0:02:21]} Qc1+ {[%emt 0:00:32]} 42. Kf2 {[%emt 0:00:26]} Qxf4+ {[%emt 0:00:32]} 43. Ke2 {[%emt 0:00:04]} Qe4+ {[%emt 0:00:37]} 44. Kd1 {[%emt 0:00:13]} Qd3+ {[%emt 0:00:28]} 45. Ke1 {[%emt 0:00:49]} Bxa3 {[%emt 0:00:39] Weighted Error Value: White=0.83/Black=0.37} 0-1

[Event "1st Henriquez Urena Memorial 2022"]
[Site "Santo Domingo"]
[Date "2022.09.16"]
[Round "1.10"]
[White "Polanco Nunez, Yoel Starling"]
[Black "Orizondo, Hugo"]
[Result "1-0"]
[ECO "A46"]
[WhiteElo "2199"]
[BlackElo "2034"]
[Annotator "TA"]
[PlyCount "55"]
[EventDate "2022.09.16"]
[EventType "swiss"]
[EventCountry "DOM"]
[SourceTitle "playchess.com"]
[Source "ChessBase"]
[SourceQuality "1"]
[TimeControl "5400+30"]

{[%evp 9,55,2,12,24,8,-6,0,0,6,4,36,27,42,35,32,6,3,-6,0,0,0,0,0,0,0,0,0,-11,10,0,0,-18,-18,-28,25,64,102,114,104,101,526,503,756,739,846,833,817,808]} 1. Nf3 {[%emt 0:00:30]} Nf6 {[%emt 0:00:30]} 2. g3 {[%emt 0:00:30]} d5 {[%emt 0:00:30]} 3. Bg2 {[%emt 0:00:30]} e6 {[%emt 0:00:30]} 4. O-O {[%emt 0:00:30]} b5 {[%emt 0:00:30]} 5. d4 {[%emt 0:00:30]} Bb7 {[%emt 0:00:30]} 6. a4 {[%emt 0:00:30] A46: 1 d4 Nf6 2 Nf3 e6: Torre, London and Colle Systems.} b4 {[%emt 0:00:30]} 7. Nbd2 {[%emt 0:00:30]} Nbd7 {[%emt 0:00:30]} 8. c4 {[%emt 0:00:30] The position is equal.} bxc3 {[%emt 0:00:30]} 9. bxc3 {[%emt 0:00:30]} Ba6 {[%emt 0:00:30] Prevents c4.} 10. Re1 {[%emt 0:00:30] [#]} Bd6 $146 {[%emt 0:00:30]} ({Predecessor:} 10... Be7 11. e4 Nxe4 12. Nxe4 dxe4 13. Rxe4 O-O 14. Re1 e5 15. Be3 Rc8 16. Rb1 Bf6 17. Nd2 Bd3 18. Rb7 {½-½ (18) Trabattoni,F (2246)-Bergero,S (1961) Arco 2020}) 11. e4 {[%emt 0:00:30]} dxe4 {[%emt 0:00:30]} 12. Ng5 {[%emt 0:00:30]} O-O {[%emt 0:00:30]} 13. Ndxe4 {[%emt 0:08:35]} Rc8 {[%emt 0:28:35]} 14. a5 {[%emt 0:25:02]} h6 {[%emt 0:03:53]} 15. Nxf6+ {[%emt 0:02:04]} Nxf6 {[%emt 0:00:18]} 16. Ne4 {[%emt 0:06:34]} Nxe4 {[%emt 0:01:35]} 17. Bxe4 {[%emt 0:00:01]} c5 {[%emt 0:01:53]} 18. d5 {[%emt 0:10:38]} Be5 {[%emt 0:17:11]} (18... f5 $5 {[%cal Rf5e4]} 19. Bd3 Bxd3 20. Qxd3 c4 $11) 19. Qc2 {[%emt 0:07:24] [#] Hoping for Bh7+.} ({Much weaker is} 19. Bh7+ Kxh7 20. Rxe5 Qf6 $15) 19... Qf6 $1 {[%emt 0:00:39]} 20. Ra3 {[%emt 0:00:41]} exd5 {[%emt 0:02:10]} 21. Bxd5 {[%emt 0:00:09]} Rcd8 {[%emt 0:00:36]} ({Black should play} 21... c4 $1) 22. c4 $36 {[%emt 0:02:16][%mdl 2048] aiming for Rf3. White is more active.} Bc8 {[%emt 0:03:53]} 23. Rf3 {[%emt 0:00:51]} Qd6 {[%emt 0:00:13]} 24. Qe4 {[%emt 0:03:00] White has more active pieces.} Rde8 {[%emt 0:04:52][%mdl 8192] [#] Black cannot hold the game after this.} (24... Bf6 $16 {is a better chance.}) 25. Bf4 $18 {[%emt 0:06:24] White is clearly winning.} Bxf4 {[%emt 0:17:34]} (25... Bg4 $142) 26. Qxe8 {[%emt 0:00:07]} Be6 {[%emt 0:03:57]} 27. Rxe6 {[%emt 0:00:15]} fxe6 {[%emt 0:00:34]} 28. Qxe6+ {[%emt 0:00:02] Weighted Error Value: White=0.06 (flawless) /Black=0.38} 1-0

[Event "1st Henriquez Urena Memorial 2022"]
[Site "Santo Domingo"]
[Date "2022.09.17"]
[Round "2.1"]
[White "Peralta, Fernando"]
[Black "Araujo Sanchez, Josue"]
[Result "1/2-1/2"]
[ECO "E48"]
[WhiteElo "2600"]
[BlackElo "2281"]
[Annotator "ChessBase"]
[PlyCount "49"]
[EventDate "2022.09.16"]
[EventType "swiss"]
[EventCountry "DOM"]
[SourceTitle "playchess.com"]
[Source "ChessBase"]
[SourceQuality "1"]
[TimeControl "5400+30"]

1. d4 {[%emt 0:00:03]} Nf6 {[%emt 0:00:26]} 2. c4 {[%emt 0:00:04]} e6 {[%emt 0:00:13]} 3. Nc3 {[%emt 0:00:06]} Bb4 {[%emt 0:00:14]} 4. e3 {[%emt 0:00:05]} O-O {[%emt 0:00:09]} 5. Bd3 {[%emt 1:32:42]} d5 6. cxd5 exd5 7. Nge2 Re8 8. Bd2 a6 9. O-O Bd6 10. Rc1 Nbd7 11. Ng3 b6 12. Nf5 Bf8 13. Qf3 Bb7 14. Qh3 Re6 15. f3 h5 16. e4 dxe4 17. fxe4 Nxe4 18. Nxe4 Bxe4 19. Bc4 Nf6 20. Nh6+ gxh6 21. Bxe6 Qxd4+ 22. Be3 Qe5 23. Bb3 Ng4 24. Bxf7+ {[%emt 0:00:00]} Kh8 {[%emt 0:09:56]} 25. Be6 {[%emt 0:00:00]} 1/2-1/2

[Event "1st Henriquez Urena Memorial 2022"]
[Site "Santo Domingo"]
[Date "2022.09.17"]
[Round "2.2"]
[White "Guzman, Christopher"]
[Black "Quezada Perez, Yasser"]
[Result "0-1"]
[ECO "B47"]
[WhiteElo "2252"]
[BlackElo "2580"]
[Annotator "ChessBase"]
[PlyCount "108"]
[EventDate "2022.09.16"]
[EventType "swiss"]
[EventCountry "DOM"]
[SourceTitle "playchess.com"]
[Source "ChessBase"]
[SourceQuality "1"]
[TimeControl "5400+30"]

1. e4 {[%emt 0:00:03]} c5 {[%emt 0:00:07]} 2. Nf3 {[%emt 0:00:13]} Nc6 {[%emt 0:00:07]} 3. d4 {[%emt 0:00:23]} cxd4 {[%emt 0:00:08]} 4. Nxd4 {[%emt 0:00:02]} Qc7 {[%emt 0:00:19]} 5. Nc3 {[%emt 0:02:32]} e6 {[%emt 0:00:09]} 6. g3 {[%emt 0:02:52]} a6 {[%emt 0:00:08]} 7. Bg2 {[%emt 0:00:08]} Nf6 {[%emt 0:00:11]} 8. O-O {[%emt 0:00:22]} Nxd4 {[%emt 0:00:14]} 9. Qxd4 {[%emt 0:00:08]} Bc5 {[%emt 0:00:06]} 10. Bf4 {[%emt 0:02:52]} d6 {[%emt 0:00:07]} 11. Qd3 {[%emt 0:00:06]} Ng4 {[%emt 0:00:51]} 12. Na4 {[%emt 0:00:30]} e5 {[%emt 0:00:17]} 13. Bd2 {[%emt 0:02:36]} Bd4 {[%emt 0:00:09]} 14. h3 {[%emt 0:00:32]} b5 {[%emt 0:01:41]} 15. hxg4 {[%emt 0:01:43]} bxa4 {[%emt 0:00:16]} 16. c3 {[%emt 0:00:02]} Ba7 {[%emt 0:02:20]} 17. g5 {[%emt 0:02:15]} O-O {[%emt 0:01:25]} 18. Be3 {[%emt 0:00:17]} Bxe3 {[%emt 0:01:09]} 19. Qxe3 {[%emt 0:00:02]} Rb8 {[%emt 0:00:47]} 20. Rfb1 {[%emt 0:04:07]} Rb6 {[%emt 0:15:26]} 21. b3 {[%emt 0:08:53]} Qb8 {[%emt 0:01:41]} 22. Bf1 {[%emt 0:14:24]} Be6 {[%emt 0:09:15]} 23. Bd3 {[%emt 0:01:16]} a3 {[%emt 0:01:47]} 24. Qc1 {[%emt 0:01:19]} Qd8 {[%emt 0:00:12]} 25. Qxa3 {[%emt 0:00:18]} Qxg5 {[%emt 0:00:10]} 26. Qc1 {[%emt 0:00:08]} Qe7 {[%emt 0:06:13]} 27. c4 {[%emt 0:00:25]} Rc6 {[%emt 0:02:41]} 28. Qe3 {[%emt 0:00:26]} g6 {[%emt 0:05:03]} 29. Re1 {[%emt 0:04:39]} Kg7 {[%emt 0:03:06]} 30. Rad1 {[%emt 0:01:46]} h5 {[%emt 0:00:28]} 31. Kg2 {[%emt 0:03:27]} a5 {[%emt 0:01:50]} 32. f4 {[%emt 0:03:33]} exf4 {[%emt 0:04:34]} 33. gxf4 {[%emt 0:03:51]} Rc5 {[%emt 0:00:08]} 34. Bc2 {[%emt 0:04:52]} Kh7 {[%emt 0:02:23]} 35. Rd2 {[%emt 0:00:34]} Re8 {[%emt 0:02:21]} 36. Kf2 {[%emt 0:03:09]} Bc8 {[%emt 0:01:27]} 37. Red1 {[%emt 0:02:39]} Bg4 {[%emt 0:02:06]} 38. Re1 {[%emt 0:00:46]} Qf6 {[%emt 0:01:10]} 39. Kg3 {[%emt 0:00:34]} Bc8 {[%emt 0:07:15]} 40. Rd5 {[%emt 0:04:44]} Rxd5 {[%emt 0:01:19]} 41. cxd5 {[%emt 0:00:02]} Qb2 {[%emt 0:01:18]} 42. Re2 {[%emt 0:09:11]} Bg4 {[%emt 0:00:55]} 43. Rg2 {[%emt 0:00:43]} f5 {[%emt 0:04:15]} 44. Bd3 {[%emt 0:08:43]} Qg7 {[%emt 0:00:47]} 45. Rc2 {[%emt 0:02:48]} fxe4 {[%emt 0:00:05]} 46. Bxe4 {[%emt 0:01:55]} Bf5 {[%emt 0:02:28]} 47. Rc4 {[%emt 0:00:14]} h4+ {[%emt 0:03:36]} 48. Kf3 {[%emt 0:00:10]} h3 {[%emt 0:00:42]} 49. Qc1 {[%emt 0:03:31]} Re7 {[%emt 0:02:26]} 50. Qc2 {[%emt 0:01:35]} Qh6 {[%emt 0:03:34]} 51. Bxf5 {[%emt 0:00:25]} h2 {[%emt 0:00:05]} 52. Bxg6+ {[%emt 0:00:25]} Kg7 {[%emt 0:00:10]} 53. Qc3+ {[%emt 0:00:44]} Kxg6 {[%emt 0:15:33]} 54. Qc2+ {[%emt 0:00:54]} Kf6 {[%emt 0:00:00]} 0-1

[Event "1st Henriquez Urena Memorial 2022"]
[Site "Santo Domingo"]
[Date "2022.09.17"]
[Round "2.3"]
[White "Ramirez, Alejandro"]
[Black "Michelen Rodriguez, Victor Isaac"]
[Result "1-0"]
[ECO "A80"]
[WhiteElo "2561"]
[BlackElo "2228"]
[Annotator "ChessBase"]
[PlyCount "65"]
[EventDate "2022.09.16"]
[EventType "swiss"]
[EventCountry "DOM"]
[SourceTitle "playchess.com"]
[Source "ChessBase"]
[SourceQuality "1"]
[TimeControl "5400+30"]

1. d4 {[%emt 0:00:48]} f5 {[%emt 0:01:04]} 2. Nf3 {[%emt 0:00:12]} Nf6 {[%emt 0:00:11]} 3. Bf4 {[%emt 0:00:09]} e6 {[%emt 0:00:39]} 4. e3 {[%emt 0:00:11]} d5 {[%emt 0:00:48]} 5. Bd3 {[%emt 0:04:22]} Bd6 {[%emt 0:03:09]} 6. O-O {[%emt 0:01:28]} O-O {[%emt 0:00:13]} 7. c4 {[%emt 0:02:50]} c6 {[%emt 0:01:26]} 8. Ne5 {[%emt 0:05:30]} Bc7 {[%emt 0:04:32]} 9. Nd2 {[%emt 0:06:20]} Nbd7 {[%emt 0:10:17]} 10. Ndf3 {[%emt 0:00:03]} Nxe5 {[%emt 0:00:33]} 11. Nxe5 {[%emt 0:00:12]} Nd7 {[%emt 0:01:50]} 12. Nf3 {[%emt 0:00:02]} h6 {[%emt 0:05:50]} 13. Rc1 {[%emt 0:05:23]} Bxf4 {[%emt 0:02:19]} 14. exf4 {[%emt 0:00:03]} g5 {[%emt 0:01:36]} 15. fxg5 {[%emt 0:12:12]} hxg5 {[%emt 0:02:32]} 16. Qd2 {[%emt 0:00:02]} g4 {[%emt 0:05:06]} 17. Ng5 {[%emt 0:00:10]} Rf6 {[%emt 0:05:14]} 18. h4 {[%emt 0:04:14]} gxh3 {[%emt 0:02:40]} 19. Nxh3 {[%emt 0:00:46]} Nf8 {[%emt 0:19:41]} 20. Qg5+ {[%emt 0:03:47]} Kf7 {[%emt 0:03:13]} 21. Nf4 {[%emt 0:08:48]} Bd7 {[%emt 0:04:33]} 22. cxd5 {[%emt 0:01:50]} exd5 {[%emt 0:04:44]} 23. Rc3 {[%emt 0:11:17]} Ne6 {[%emt 0:05:36]} 24. Qh5+ {[%emt 0:00:17]} Kg7 {[%emt 0:03:36]} 25. Bxf5 {[%emt 0:00:48]} Nxf4 {[%emt 0:01:50]} 26. Rg3+ {[%emt 0:00:02]} Kf8 {[%emt 0:01:12]} 27. Qh8+ {[%emt 0:00:06]} Ke7 {[%emt 0:00:26]} 28. Rg7+ {[%emt 0:00:07]} Rf7 {[%emt 0:00:33]} 29. Re1+ {[%emt 0:00:33]} Ne6 {[%emt 0:00:47]} 30. Rxf7+ {[%emt 0:00:07]} Kxf7 {[%emt 0:02:59]} 31. Bxe6+ {[%emt 0:00:05]} Kg6 {[%emt 0:00:22]} 32. Qh3 {[%emt 0:00:28]} Be8 {[%emt 0:01:48]} 33. Bf5+ {[%emt 0:00:18]} 1-0

[Event "1st Henriquez Urena Memorial 2022"]
[Site "Santo Domingo"]
[Date "2022.09.17"]
[Round "2.4"]
[White "Mesa Cruz, Juan Carlos"]
[Black "Cuenca Jimenez, Jose Fernando"]
[Result "1/2-1/2"]
[ECO "C55"]
[WhiteElo "2119"]
[BlackElo "2553"]
[Annotator "ChessBase"]
[PlyCount "111"]
[EventDate "2022.09.16"]
[EventType "swiss"]
[EventCountry "DOM"]
[SourceTitle "playchess.com"]
[Source "ChessBase"]
[SourceQuality "1"]
[TimeControl "5400+30"]

1. e4 {[%emt 0:01:43]} e5 {[%emt 0:00:19]} 2. Nf3 {[%emt 0:00:50]} Nc6 {[%emt 0:00:06]} 3. Bc4 {[%emt 0:00:13]} Nf6 {[%emt 0:00:06]} 4. d3 {[%emt 0:00:12]} h6 {[%emt 0:00:11]} 5. c3 {[%emt 0:00:13]} d6 {[%emt 0:00:19]} 6. Nbd2 {[%emt 0:00:27]} g5 {[%emt 0:01:08]} 7. Nf1 {[%emt 0:00:38]} Bg7 {[%emt 0:04:30]} 8. Ng3 {[%emt 0:01:37]} O-O {[%emt 0:05:11]} 9. a4 {[%emt 0:01:21]} Ne7 {[%emt 0:02:56]} 10. h4 {[%emt 0:16:33]} g4 {[%emt 0:01:26]} 11. Nh2 {[%emt 0:00:19]} d5 {[%emt 0:07:44]} 12. Bb3 {[%emt 0:03:07]} Be6 {[%emt 0:07:20]} 13. h5 {[%emt 0:07:17]} c6 {[%emt 0:09:07]} 14. O-O {[%emt 0:11:45]} Kh8 {[%emt 0:18:21]} 15. Bc2 {[%emt 0:11:06]} Qd7 {[%emt 0:04:20]} 16. Be3 {[%emt 0:10:12]} Nfg8 {[%emt 0:03:03]} 17. d4 {[%emt 0:05:19]} dxe4 {[%emt 0:04:30]} 18. dxe5 {[%emt 0:01:23]} Bxe5 {[%emt 0:03:42]} 19. Qxd7 {[%emt 0:01:46]} Bxd7 {[%emt 0:00:03]} 20. Nxe4 {[%emt 0:00:47]} b6 {[%emt 0:02:14]} 21. f4 {[%emt 0:07:07]} Bg7 {[%emt 0:05:57]} 22. Bb3 {[%emt 0:05:25]} f5 {[%emt 0:07:11]} 23. Rfd1 {[%emt 0:02:53]} Be8 {[%emt 0:04:50]} 24. Ng3 {[%emt 0:02:25]} Nf6 {[%emt 0:00:05]} 25. a5 {[%emt 0:00:42]} Nfd5 {[%emt 0:04:42]} 26. Nhf1 {[%emt 0:00:02]} Bf7 {[%emt 0:02:06]} 27. Bc2 {[%emt 0:00:02]} Be6 {[%emt 0:01:29]} 28. Kf2 {[%emt 0:01:12]} b5 {[%emt 0:00:22]} 29. Ne2 {[%emt 0:02:04]} Rf7 {[%emt 0:00:53]} 30. g3 {[%emt 0:01:04]} a6 {[%emt 0:00:13]} 31. Bc5 {[%emt 0:00:28]} Bd7 {[%emt 0:00:41]} 32. Bb3 {[%emt 0:00:54]} Ng8 {[%emt 0:00:27]} 33. Ne3 {[%emt 0:00:57]} Ngf6 {[%emt 0:00:05]} 34. Bc2 {[%emt 0:00:34]} Nxh5 {[%emt 0:00:34]} 35. Nxd5 {[%emt 0:00:43]} cxd5 {[%emt 0:00:01]} 36. Rxd5 {[%emt 0:01:40]} Nf6 {[%emt 0:00:05]} 37. Rd2 {[%emt 0:00:22]} Rc8 {[%emt 0:00:44]} 38. Be3 {[%emt 0:01:15]} Re7 {[%emt 0:00:33]} 39. Nd4 {[%emt 0:01:24]} Rce8 {[%emt 0:01:06]} 40. Re2 {[%emt 0:00:31]} Ne4+ {[%emt 0:00:13]} 41. Bxe4 {[%emt 0:00:23]} Rxe4 {[%emt 0:00:01]} 42. Rae1 {[%emt 0:00:46]} Kg8 {[%emt 0:00:41]} 43. Nb3 {[%emt 0:00:46]} Bc8 {[%emt 0:01:40]} 44. Bd4 {[%emt 0:00:21]} Rxe2+ {[%emt 0:00:28]} 45. Rxe2 {[%emt 0:00:02]} Rxe2+ {[%emt 0:00:31]} 46. Kxe2 {[%emt 0:00:01]} Bf8 {[%emt 0:00:44]} 47. Bc5 {[%emt 0:01:04]} Bg7 {[%emt 0:00:09]} 48. Bd4 {[%emt 0:00:11]} h5 {[%emt 0:00:11]} 49. Bxg7 {[%emt 0:00:32]} Kxg7 {[%emt 0:01:42]} 50. Nd2 {[%emt 0:00:25]} Be6 {[%emt 0:00:00]} 51. b4 {[%emt 0:00:12]} Kg6 {[%emt 0:00:00]} 52. Kf2 {[%emt 0:00:08]} Bd5 {[%emt 0:00:26]} 53. Nf1 {[%emt 0:00:11]} Kf6 {[%emt 0:00:15]} 54. Ne3 {[%emt 0:01:36]} Be4 {[%emt 0:00:24]} 55. Kg1 {[%emt 0:01:15]} Ke6 {[%emt 0:01:55]} 56. Kf2 {[%emt 0:01:06]} 1/2-1/2

[Event "1st Henriquez Urena Memorial 2022"]
[Site "Santo Domingo"]
[Date "2022.09.17"]
[Round "2.5"]
[White "Leon Hoyos, Manuel"]
[Black "Polanco Nunez, Yoel Starling"]
[Result "1-0"]
[ECO "B40"]
[WhiteElo "2491"]
[BlackElo "2199"]
[Annotator "ChessBase"]
[PlyCount "95"]
[EventDate "2022.09.16"]
[EventType "swiss"]
[EventCountry "DOM"]
[SourceTitle "playchess.com"]
[Source "ChessBase"]
[SourceQuality "1"]
[TimeControl "5400+30"]

1. e4 {[%emt 0:00:04]} c5 {[%emt 0:00:08]} 2. Nf3 {[%emt 0:00:07]} e6 {[%emt 0:00:01]} 3. g3 {[%emt 0:00:20]} Nc6 {[%emt 0:04:16]} 4. Bg2 {[%emt 0:00:56]} Nf6 {[%emt 0:00:23]} 5. Qe2 {[%emt 0:12:33]} Qc7 {[%emt 0:05:35]} 6. O-O {[%emt 0:00:24]} Be7 {[%emt 0:01:10]} 7. Rd1 {[%emt 0:15:45]} O-O {[%emt 1:22:27]} 8. d4 {[%emt 0:08:41]} cxd4 {[%emt 0:00:00]} 9. Nxd4 {[%emt 0:00:13]} d6 {[%emt 0:00:00]} 10. Nb5 {[%emt 0:14:12]} Qb8 {[%emt 0:00:00]} 11. c4 {[%emt 0:00:02]} a6 {[%emt 0:00:00]} 12. N5c3 {[%emt 0:00:02]} Qc7 {[%emt 0:00:00]} 13. h3 {[%emt 0:02:28]} Bd7 {[%emt 0:00:00]} 14. b3 {[%emt 0:06:20]} Rab8 {[%emt 0:00:00]} 15. a4 {[%emt 0:01:57]} Rfe8 {[%emt 0:00:00]} 16. Be3 {[%emt 0:01:25]} Bc8 {[%emt 0:00:00]} 17. Na3 {[%emt 0:06:12]} Nd7 {[%emt 0:00:00]} 18. Rab1 {[%emt 0:11:18]} Nb4 {[%emt 0:00:00]} 19. Qd2 {[%emt 0:02:22]} Nc6 {[%emt 0:00:00]} 20. b4 {[%emt 0:03:29]} Nce5 {[%emt 0:00:00]} 21. f4 {[%emt 0:01:48]} Ng6 {[%emt 0:00:00]} 22. h4 {[%emt 0:03:38]} b6 {[%emt 0:00:00]} 23. h5 {[%emt 0:02:10]} Ngf8 {[%emt 0:00:00]} 24. h6 {[%emt 0:00:11]} g6 {[%emt 0:00:00]} 25. g4 {[%emt 0:00:04]} Bb7 {[%emt 0:00:00]} 26. Rbc1 {[%emt 0:00:55]} Nf6 {[%emt 0:00:00]} 27. Bf3 {[%emt 0:06:24]} Red8 {[%emt 0:00:13]} 28. Qb2 {[%emt 0:00:00]} Ne8 {[%emt 0:01:04]} 29. g5 {[%emt 0:00:00]} f6 {[%emt 0:00:19]} 30. Bg4 {[%emt 0:00:00]} fxg5 {[%emt 0:00:26]} 31. fxg5 {[%emt 0:00:00]} d5 {[%emt 0:00:06]} 32. Ne2 {[%emt 0:00:00]} dxe4 {[%emt 0:01:50]} 33. Bf4 {[%emt 0:00:00]} Bd6 {[%emt 0:03:01]} 34. Rxd6 {[%emt 0:00:00]} Nxd6 {[%emt 0:02:06]} 35. c5 {[%emt 0:00:00]} bxc5 {[%emt 0:00:04]} 36. bxc5 {[%emt 0:00:00]} Bd5 {[%emt 0:04:48]} 37. cxd6 {[%emt 0:00:00]} Qa7+ {[%emt 0:00:23]} 38. Qd4 {[%emt 0:00:00]} Qxd4+ {[%emt 0:00:25]} 39. Nxd4 {[%emt 0:00:00]} Rdc8 {[%emt 0:00:35]} 40. Rc7 {[%emt 0:00:28]} Rxc7 {[%emt 0:00:08]} 41. dxc7 {[%emt 0:00:02]} Rc8 {[%emt 0:00:01]} 42. Nac2 {[%emt 0:00:56]} Kf7 {[%emt 0:01:27]} 43. Ne3 {[%emt 0:01:51]} Ba2 {[%emt 0:00:05]} 44. Nc6 {[%emt 0:05:13]} Nd7 {[%emt 0:00:49]} 45. Na7 {[%emt 0:00:00]} Rxc7 {[%emt 0:00:09]} 46. Bxc7 {[%emt 0:00:00]} Nc5 {[%emt 0:00:35]} 47. a5 {[%emt 0:00:00]} e5 {[%emt 0:00:26]} 48. Nc6 {[%emt 0:00:00]} 1-0

[Event "1st Henriquez Urena Memorial 2022"]
[Site "Santo Domingo"]
[Date "2022.09.17"]
[Round "2.6"]
[White "Mendez Ramirez, Victor"]
[Black "Camacho Campusano, David Daniel"]
[Result "0-1"]
[WhiteElo "2153"]
[BlackElo "2230"]
[Annotator "TA"]
[PlyCount "33"]
[EventDate "2022.09.16"]
[EventType "swiss"]
[EventCountry "DOM"]
[SourceTitle "playchess.com"]
[Source "ChessBase"]
[SourceQuality "1"]
[TimeControl "5400+30"]

{[%evp 10,11,8,0]} 1. c4 {[%emt 0:00:14]} Nf6 {[%emt 0:00:29]} 2. Nc3 c5 {[%emt 0:02:56]} 3. g3 g6 {[%emt 1:28:35]} 4. Bg2 {[%emt 0:02:14]} Bg7 {[%emt 0:00:00]} 5. e4 Nc6 {[%emt 0:00:00]} 6. Nge2 {[%emt 0:00:58][%mdl 32768] [#] Loss on time!?} {Predecessor:} O-O $146 {A36: Symmetrical English vs ...g6: 4 Bg2 Bg7.} 7. O-O Ne8 8. d3 Nc7 9. f4 Ne6 10. h3 a6 11. a4 d6 12. f5 Ned4 13. g4 Rb8 14. Nxd4 Nxd4 15. Nd5 b5 16. axb5 axb5 17. Bg5 {1-0 (46) Bernadskiy,V (2594)-Donchenko,A (2615) Riga 2019} 0-1